[Event "Early-Titled-Tuesday-Blitz-May-28-2024"]
[Site "Chess.com"]
[Date "2024.05.28"]
[Round "11"]
[White "ural58"]
[Black "PonyQueen07"]
[Result "0-1"]
[WhiteElo "2401"]
[BlackElo "2094"]
[TimeControl "180+1"]
[EndTime "10:10:06 PDT"]
[Termination "PonyQueen07 won by resignation"]

1. e4 {[%clk 0:03:00.4]} 1... c5 {[%clk 0:02:59.6]} 2. b3 {[%clk 0:02:59.3]}
2... Nc6 {[%clk 0:02:56.1]} 3. Bb2 {[%clk 0:02:58.8]} 3... d6 {[%clk 0:02:56.3]}
4. f4 {[%clk 0:02:57]} 4... Nf6 {[%clk 0:02:55.7]} 5. Qf3 {[%clk 0:02:56.6]}
5... e5 {[%clk 0:02:49.8]} 6. Bb5 {[%clk 0:02:55.7]} 6... exf4 {[%clk
0:02:42.2]} 7. Qxf4 {[%clk 0:02:54.5]} 7... Be7 {[%clk 0:02:41.7]} 8. Nf3 {[%clk
0:02:53.2]} 8... O-O {[%clk 0:02:39.4]} 9. Bxc6 {[%clk 0:02:53.2]} 9... bxc6
{[%clk 0:02:39.2]} 10. d3 {[%clk 0:02:53.6]} 10... h6 {[%clk 0:02:23.2]} 11.
Nbd2 {[%clk 0:02:52.7]} 11... Nh5 {[%clk 0:02:15.2]} 12. Qe3 {[%clk 0:02:52.1]}
12... Bg5 {[%clk 0:02:03.9]} 13. Nxg5 {[%clk 0:02:51.3]} 13... Qxg5 {[%clk
0:02:03.2]} 14. Qxg5 {[%clk 0:02:50.8]} 14... hxg5 {[%clk 0:02:03.2]} 15. O-O
{[%clk 0:02:43.3]} 15... Be6 {[%clk 0:01:53.9]} 16. Rf2 {[%clk 0:02:22.5]} 16...
d5 {[%clk 0:01:48.7]} 17. Raf1 {[%clk 0:02:21.2]} 17... f6 {[%clk 0:01:36]} 18.
Bc1 {[%clk 0:02:16.2]} 18... Nf4 {[%clk 0:01:18.9]} 19. Ba3 {[%clk 0:02:13.7]}
19... Rfd8 {[%clk 0:01:08]} 20. Bxc5 {[%clk 0:02:12.3]} 20... a6 {[%clk
0:01:05.2]} 21. Be3 {[%clk 0:02:06.6]} 21... Ng6 {[%clk 0:00:58.5]} 22. exd5
{[%clk 0:02:06.3]} 22... cxd5 {[%clk 0:00:55.6]} 23. Bc5 {[%clk 0:02:01.9]}
23... Rdc8 {[%clk 0:00:52.4]} 24. d4 {[%clk 0:02:01.7]} 24... Nf4 {[%clk
0:00:45.2]} 25. b4 {[%clk 0:01:58.3]} 25... Bf5 {[%clk 0:00:40]} 26. c3 {[%clk
0:01:52.1]} 26... Bd3 {[%clk 0:00:38]} 27. Re1 {[%clk 0:01:49.9]} 27... Re8
{[%clk 0:00:37.8]} 28. Rxe8+ {[%clk 0:01:43.1]} 28... Rxe8 {[%clk 0:00:37.4]}
29. Nf3 {[%clk 0:01:42.9]} 29... g4 {[%clk 0:00:31.3]} 30. h3 {[%clk 0:01:23]}
30... gxf3 {[%clk 0:00:21.7]} 31. Rxf3 {[%clk 0:01:23.2]} 31... Ne2+ {[%clk
0:00:19.7]} 32. Kh2 {[%clk 0:01:22.9]} 32... Bc4 {[%clk 0:00:19.3]} 33. a4
{[%clk 0:01:21.7]} 33... Nc1 {[%clk 0:00:15.3]} 34. h4 {[%clk 0:01:16.7]} 34...
Re4 {[%clk 0:00:09.1]} 35. g3 {[%clk 0:01:13.3]} 35... Re2+ {[%clk 0:00:06.6]}
36. Kh3 {[%clk 0:01:10.9]} 36... Bd3 {[%clk 0:00:02.2]} 37. h5 {[%clk
0:01:08.4]} 37... Be4 {[%clk 0:00:01.9]} 38. Rf4 {[%clk 0:01:05.6]} 38... Nd3
{[%clk 0:00:01.7]} 39. b5 {[%clk 0:00:52.2]} 39... Nxf4+ {[%clk 0:00:01.7]} 40.
gxf4 {[%clk 0:00:52.8]} 40... axb5 {[%clk 0:00:02.1]} 41. axb5 {[%clk
0:00:53.1]} 41... Bf5+ {[%clk 0:00:02]} 42. Kg3 {[%clk 0:00:52.6]} 42... Bd7
{[%clk 0:00:02.2]} 43. b6 {[%clk 0:00:52.5]} 43... Bc6 {[%clk 0:00:02.7]} 44. f5
{[%clk 0:00:51.4]} 44... Re3+ {[%clk 0:00:02.9]} 45. Kg4 {[%clk 0:00:50.1]}
45... Rxc3 {[%clk 0:00:03.8]} 46. h6 {[%clk 0:00:49.3]} 46... gxh6 {[%clk
0:00:03.7]} 47. Kh5 {[%clk 0:00:50]} 47... Kh7 {[%clk 0:00:03.6]} 48. Be7 {[%clk
0:00:48.3]} 48... Rb3 {[%clk 0:00:03]} 49. Bd8 {[%clk 0:00:47.7]} 49... Bd7
{[%clk 0:00:02.2]} 50. Kg4 {[%clk 0:00:47.4]} 50... h5+ {[%clk 0:00:01.8]} 51.
Kxh5 {[%clk 0:00:46.6]} 51... Bxf5 {[%clk 0:00:02.2]} 52. Bxf6 {[%clk
0:00:45.4]} 52... Rxb6 {[%clk 0:00:01.4]} 53. Kg5 {[%clk 0:00:45.3]} 53... Be4
{[%clk 0:00:01.8]} 54. Be5 {[%clk 0:00:45]} 54... Rb1 {[%clk 0:00:01.9]} 55. Kf4
{[%clk 0:00:44.1]} 55... Kg6 {[%clk 0:00:01.6]} 56. Ke3 {[%clk 0:00:43]} 56...
Rf1 {[%clk 0:00:01.5]} 57. Ke2 {[%clk 0:00:42.8]} 57... Rf3 {[%clk 0:00:01.7]}
58. Bd6 {[%clk 0:00:42.2]} 58... Kf5 {[%clk 0:00:02.2]} 59. Be5 {[%clk
0:00:43.1]} 59... Ra3 {[%clk 0:00:02.6]} 60. Kd2 {[%clk 0:00:43.1]} 60... Kg4
{[%clk 0:00:02.9]} 61. Ke2 {[%clk 0:00:40.4]} 61... Kh3 {[%clk 0:00:02.9]} 62.
Kf2 {[%clk 0:00:41.3]} 62... Ra2+ {[%clk 0:00:02.5]} 63. Ke3 {[%clk 0:00:41.3]}
63... Kg4 {[%clk 0:00:02.7]} 64. Bg7 {[%clk 0:00:38.6]} 64... Ra3+ {[%clk
0:00:02.9]} 65. Ke2 {[%clk 0:00:38.8]} 65... Kf4 {[%clk 0:00:02.9]} 66. Bh6+
{[%clk 0:00:38.7]} 66... Kf5 {[%clk 0:00:03.3]} 67. Bg7 {[%clk 0:00:39.6]} 67...
Ke6 {[%clk 0:00:03.7]} 68. Kd2 {[%clk 0:00:39.3]} 68... Kd7 {[%clk 0:00:04.2]}
69. Bf8 {[%clk 0:00:39.2]} 69... Rd3+ {[%clk 0:00:03.9]} 70. Ke2 {[%clk
0:00:38.7]} 70... Rxd4 {[%clk 0:00:04.5]} 0-1

[Event "Early-Titled-Tuesday-Blitz-May-28-2024"]
[Site "Chess.com"]
[Date "2024.05.28"]
[Round "11"]
[White "Arteler"]
[Black "Fh2411"]
[Result "1/2-1/2"]
[WhiteElo "2265"]
[BlackElo "2546"]
[TimeControl "180+1"]
[EndTime "10:10:09 PDT"]
[Termination "Game drawn by repetition"]

1. e4 {[%clk 0:03:00.9]} 1... c6 {[%clk 0:02:59.7]} 2. Nf3 {[%clk 0:03:00.4]}
2... d5 {[%clk 0:02:59.6]} 3. Nc3 {[%clk 0:03:01]} 3... Bg4 {[%clk 0:02:58.2]}
4. h3 {[%clk 0:03:00.5]} 4... Bxf3 {[%clk 0:02:57.6]} 5. Qxf3 {[%clk 0:03:01.4]}
5... e6 {[%clk 0:02:57.8]} 6. g3 {[%clk 0:03:01.1]} 6... Nd7 {[%clk 0:02:55.8]}
7. Bg2 {[%clk 0:03:01.5]} 7... Ngf6 {[%clk 0:02:51.2]} 8. O-O {[%clk 0:03:00.8]}
8... Bb4 {[%clk 0:02:50.6]} 9. b3 {[%clk 0:02:50.1]} 9... Bxc3 {[%clk
0:02:45.5]} 10. Qxc3 {[%clk 0:02:51]} 10... dxe4 {[%clk 0:02:41.3]} 11. Bb2
{[%clk 0:02:51.4]} 11... Qb6 {[%clk 0:02:25.4]} 12. Rfe1 {[%clk 0:02:35.2]}
12... Qc5 {[%clk 0:02:24.3]} 13. Bxe4 {[%clk 0:01:56.6]} 13... Qxc3 {[%clk
0:02:22.9]} 14. Bxc3 {[%clk 0:01:57.5]} 14... Nxe4 {[%clk 0:02:22.2]} 15. Rxe4
{[%clk 0:01:57.6]} 15... O-O {[%clk 0:02:14.3]} 16. d3 {[%clk 0:01:43.5]} 16...
Rfe8 {[%clk 0:02:13.8]} 17. Rae1 {[%clk 0:01:41.8]} 17... Rad8 {[%clk 0:01:41]}
18. Rg4 {[%clk 0:01:37.2]} 18... f6 {[%clk 0:01:39.2]} 19. Rb4 {[%clk
0:01:33.1]} 19... b6 {[%clk 0:01:35.2]} 20. f4 {[%clk 0:01:32.9]} 20... Kf7
{[%clk 0:01:34.8]} 21. Rbe4 {[%clk 0:01:28.4]} 21... Nc5 {[%clk 0:01:28.6]} 22.
Rc4 {[%clk 0:01:22.1]} 22... Rc8 {[%clk 0:01:28.2]} 23. a4 {[%clk 0:01:15.6]}
23... Nb7 {[%clk 0:01:28]} 24. Rce4 {[%clk 0:01:12.1]} 24... c5 {[%clk
0:01:23.1]} 25. g4 {[%clk 0:01:06.6]} 25... Rcd8 {[%clk 0:01:17.9]} 26. Kf2
{[%clk 0:01:05.4]} 26... Nd6 {[%clk 0:01:16.2]} 27. R4e2 {[%clk 0:01:04]} 27...
Rd7 {[%clk 0:01:13.2]} 28. Kf3 {[%clk 0:01:02.9]} 28... Rde7 {[%clk 0:01:12.8]}
29. a5 {[%clk 0:00:53.5]} 29... Nb5 {[%clk 0:01:07.7]} 30. Bb2 {[%clk
0:00:48.5]} 30... Rd7 {[%clk 0:01:04.8]} 31. axb6 {[%clk 0:00:45.9]} 31... axb6
{[%clk 0:01:05.7]} 32. Ra1 {[%clk 0:00:42.4]} 32... Ra7 {[%clk 0:01:05.7]} 33.
Ree1 {[%clk 0:00:40.2]} 33... Rea8 {[%clk 0:01:05.2]} 34. Rxa7+ {[%clk
0:00:36.2]} 34... Rxa7 {[%clk 0:01:06.1]} 35. Ra1 {[%clk 0:00:36.4]} 35... Rxa1
{[%clk 0:01:04.8]} 36. Bxa1 {[%clk 0:00:37.3]} 36... Na3 {[%clk 0:00:48.8]} 37.
c3 {[%clk 0:00:33.5]} 37... Ke7 {[%clk 0:00:47.1]} 38. c4 {[%clk 0:00:22.5]}
38... Kd6 {[%clk 0:00:46.2]} 39. Bc3 {[%clk 0:00:20.5]} 39... Nb1 {[%clk
0:00:41.7]} 40. Bb2 {[%clk 0:00:17.7]} 40... Nd2+ {[%clk 0:00:41.4]} 41. Ke3
{[%clk 0:00:17.1]} 41... Nxb3 {[%clk 0:00:42.3]} 42. Bc3 {[%clk 0:00:17]} 42...
e5 {[%clk 0:00:38.3]} 43. fxe5+ {[%clk 0:00:16.6]} 43... fxe5 {[%clk 0:00:37.9]}
44. Ke4 {[%clk 0:00:16.5]} 44... Nd4 {[%clk 0:00:38.2]} 45. h4 {[%clk
0:00:14.3]} 45... Ke6 {[%clk 0:00:36.7]} 46. g5 {[%clk 0:00:14.6]} 46... g6
{[%clk 0:00:30.9]} 47. Bb2 {[%clk 0:00:13.5]} 47... Nf5 {[%clk 0:00:20.2]} 48.
Bxe5 {[%clk 0:00:10.2]} 48... Nxh4 {[%clk 0:00:15.9]} 49. Bc7 {[%clk 0:00:06.8]}
49... Kd7 {[%clk 0:00:15.3]} 50. Bxb6 {[%clk 0:00:07.3]} 50... Kc6 {[%clk
0:00:16.2]} 51. Ba7 {[%clk 0:00:07.4]} 51... Nf5 {[%clk 0:00:16.8]} 52. Bb8
{[%clk 0:00:07.5]} 52... Nd4 {[%clk 0:00:14.8]} 53. Bf4 {[%clk 0:00:07.9]} 53...
Ne6 {[%clk 0:00:14.1]} 54. Be3 {[%clk 0:00:07.8]} 54... Ng7 {[%clk 0:00:12.9]}
55. Ke5 {[%clk 0:00:08]} 55... Nf5 {[%clk 0:00:13.8]} 56. Bd2 {[%clk 0:00:08.3]}
56... Nd4 {[%clk 0:00:11.3]} 57. Be3 {[%clk 0:00:06.7]} 57... Nf5 {[%clk
0:00:10.8]} 58. Bd2 {[%clk 0:00:05.9]} 58... Nh4 {[%clk 0:00:10.9]} 59. Kf4
{[%clk 0:00:05.4]} 59... Nf5 {[%clk 0:00:10.8]} 60. Ke5 {[%clk 0:00:05.4]}
1/2-1/2

[Event "Early-Titled-Tuesday-Blitz-May-28-2024"]
[Site "Chess.com"]
[Date "2024.05.28"]
[Round "11"]
[White "HansOnTwitch"]
[Black "vi_pranav"]
[Result "1-0"]
[WhiteElo "3131"]
[BlackElo "3051"]
[TimeControl "180+1"]
[EndTime "10:10:13 PDT"]
[Termination "HansOnTwitch won by resignation"]

1. e4 {[%clk 0:02:58.7]} 1... e5 {[%clk 0:03:00]} 2. Nf3 {[%clk 0:02:58.8]} 2...
Nc6 {[%clk 0:03:00.3]} 3. Bc4 {[%clk 0:02:59.6]} 3... Nf6 {[%clk 0:02:59.5]} 4.
d3 {[%clk 0:02:59.1]} 4... h6 {[%clk 0:02:58.6]} 5. a4 {[%clk 0:02:58.2]} 5...
d6 {[%clk 0:02:58]} 6. Nc3 {[%clk 0:02:57.5]} 6... g6 {[%clk 0:02:57.3]} 7. O-O
{[%clk 0:02:57.6]} 7... Bg7 {[%clk 0:02:57.3]} 8. h3 {[%clk 0:02:58.4]} 8... O-O
{[%clk 0:02:57.4]} 9. a5 {[%clk 0:02:59.2]} 9... a6 {[%clk 0:02:57]} 10. Re1
{[%clk 0:02:59.9]} 10... Be6 {[%clk 0:02:57.1]} 11. Bxe6 {[%clk 0:02:58.6]}
11... fxe6 {[%clk 0:02:58]} 12. Ne2 {[%clk 0:02:59.3]} 12... Nh5 {[%clk
0:02:57.2]} 13. Ng3 {[%clk 0:02:59.5]} 13... Nxg3 {[%clk 0:02:50]} 14. fxg3
{[%clk 0:03:00.4]} 14... Kh7 {[%clk 0:02:50.6]} 15. c3 {[%clk 0:03:00.4]} 15...
d5 {[%clk 0:02:50.5]} 16. Qb3 {[%clk 0:02:59.3]} 16... Qd7 {[%clk 0:02:48.6]}
17. Be3 {[%clk 0:02:57.3]} 17... Qd6 {[%clk 0:02:33.2]} 18. Rf1 {[%clk
0:02:48.4]} 18... Rab8 {[%clk 0:02:29.8]} 19. Qa4 {[%clk 0:02:40.4]} 19... d4
{[%clk 0:02:19.7]} 20. cxd4 {[%clk 0:02:39.8]} 20... exd4 {[%clk 0:02:10.1]} 21.
Bf4 {[%clk 0:02:40]} 21... e5 {[%clk 0:01:53.1]} 22. Bd2 {[%clk 0:02:38.8]}
22... Qe6 {[%clk 0:01:47.1]} 23. Rac1 {[%clk 0:02:37.9]} 23... Rf7 {[%clk
0:01:46.8]} 24. g4 {[%clk 0:02:31]} 24... Na7 {[%clk 0:01:34.2]} 25. Rc5 {[%clk
0:01:54.6]} 25... Rbf8 {[%clk 0:01:27]} 26. Bb4 {[%clk 0:01:47]} 26... Nb5
{[%clk 0:01:24.5]} 27. Qc2 {[%clk 0:01:36.6]} 27... Re8 {[%clk 0:01:18]} 28. Be1
{[%clk 0:01:24.2]} 28... Qd7 {[%clk 0:00:37.4]} 29. Bg3 {[%clk 0:01:22.6]} 29...
Rfe7 {[%clk 0:00:37.9]} 30. Qc4 {[%clk 0:01:16.1]} 30... Nd6 {[%clk 0:00:36.7]}
31. Qb3 {[%clk 0:01:12]} 31... c6 {[%clk 0:00:36.4]} 32. Rc2 {[%clk 0:01:06.1]}
32... Qc7 {[%clk 0:00:33.2]} 33. Qb4 {[%clk 0:01:04.9]} 33... Qd7 {[%clk
0:00:29]} 34. Rcf2 {[%clk 0:01:02.5]} 34... Rf7 {[%clk 0:00:24.6]} 35. Qc5
{[%clk 0:00:59.6]} 35... Rfe7 {[%clk 0:00:21.5]} 36. Nd2 {[%clk 0:00:57]} 36...
Qe6 {[%clk 0:00:20.1]} 37. Bh4 {[%clk 0:00:55.6]} 37... Rd7 {[%clk 0:00:18.6]}
38. Bf6 {[%clk 0:00:55.4]} 38... Rf7 {[%clk 0:00:11.4]} 39. g5 {[%clk
0:00:51.3]} 39... hxg5 {[%clk 0:00:01.7]} 40. Bxg5 {[%clk 0:00:52.2]} 40... Rxf2
{[%clk 0:00:02.3]} 41. Rxf2 {[%clk 0:00:53.1]} 41... Kg8 {[%clk 0:00:03]} 42.
Bh4 {[%clk 0:00:50.3]} 42... Bh6 {[%clk 0:00:02.9]} 43. Rf6 {[%clk 0:00:48.7]}
43... Bxd2 {[%clk 0:00:03.4]} 44. Rxe6 {[%clk 0:00:48.5]} 44... Rxe6 {[%clk
0:00:04.3]} 45. Qb6 {[%clk 0:00:46.6]} 45... Be3+ {[%clk 0:00:04.1]} 46. Kh2
{[%clk 0:00:45.4]} 46... g5 {[%clk 0:00:03.5]} 47. Bg3 {[%clk 0:00:45.3]} 47...
Bf4 {[%clk 0:00:03.2]} 48. Qd8+ {[%clk 0:00:43.3]} 48... Kf7 {[%clk 0:00:02.8]}
49. Qd7+ {[%clk 0:00:43.1]} 49... Kf6 {[%clk 0:00:03.1]} 50. Bxf4 {[%clk
0:00:43.5]} 50... gxf4 {[%clk 0:00:04]} 51. g3 {[%clk 0:00:43.3]} 51... fxg3+
{[%clk 0:00:03.9]} 52. Kxg3 {[%clk 0:00:44.2]} 52... c5 {[%clk 0:00:04.8]} 53.
b3 {[%clk 0:00:43.8]} 53... Nf7 {[%clk 0:00:01.4]} 54. Qxb7 {[%clk 0:00:41.7]}
54... Rd6 {[%clk 0:00:01.1]} 55. h4 {[%clk 0:00:41.3]} 55... Nd8 {[%clk
0:00:01.2]} 56. Qc7 {[%clk 0:00:40.4]} 56... Nf7 {[%clk 0:00:01.5]} 57. h5
{[%clk 0:00:40.1]} 57... Rd8 {[%clk 0:00:01.2]} 58. Kh4 {[%clk 0:00:38.6]} 58...
Rg8 {[%clk 0:00:01.3]} 59. Qb6+ {[%clk 0:00:38.5]} 59... Ke7 {[%clk 0:00:01.4]}
60. Qxa6 {[%clk 0:00:38.2]} 60... Rg1 {[%clk 0:00:00.8]} 61. Qa7+ {[%clk
0:00:38]} 61... Kf6 {[%clk 0:00:01.3]} 62. Qb6+ {[%clk 0:00:38.1]} 62... Ke7
{[%clk 0:00:01.7]} 63. Qxc5+ {[%clk 0:00:38.2]} 63... Ke6 {[%clk 0:00:01.9]} 64.
Qc6+ {[%clk 0:00:38.2]} 64... Ke7 {[%clk 0:00:02.3]} 65. a6 {[%clk 0:00:38.4]}
65... Rh1+ {[%clk 0:00:02.7]} 66. Kg3 {[%clk 0:00:38.6]} 66... Rg1+ {[%clk
0:00:03.6]} 67. Kf2 {[%clk 0:00:38.8]} 1-0

[Event "Early-Titled-Tuesday-Blitz-May-28-2024"]
[Site "Chess.com"]
[Date "2024.05.28"]
[Round "11"]
[White "mbojan"]
[Black "KnightDuta"]
[Result "1-0"]
[WhiteElo "2905"]
[BlackElo "2722"]
[TimeControl "180+1"]
[EndTime "10:10:14 PDT"]
[Termination "mbojan won by checkmate"]

1. e4 {[%clk 0:03:00.9]} 1... c5 {[%clk 0:02:59.5]} 2. Nf3 {[%clk 0:03:01.1]}
2... Nc6 {[%clk 0:03:00]} 3. d4 {[%clk 0:03:00.4]} 3... cxd4 {[%clk 0:03:00.9]}
4. Nxd4 {[%clk 0:03:00.9]} 4... Nf6 {[%clk 0:03:01.6]} 5. Nc3 {[%clk 0:03:00.8]}
5... e5 {[%clk 0:03:02]} 6. Ndb5 {[%clk 0:03:01]} 6... d6 {[%clk 0:03:02.7]} 7.
Bg5 {[%clk 0:03:00.7]} 7... a6 {[%clk 0:03:03.3]} 8. Na3 {[%clk 0:03:00.8]} 8...
b5 {[%clk 0:03:03.9]} 9. Bxf6 {[%clk 0:03:01.1]} 9... gxf6 {[%clk 0:03:04.8]}
10. Nd5 {[%clk 0:03:00.2]} 10... f5 {[%clk 0:03:05.1]} 11. Bd3 {[%clk
0:02:59.5]} 11... Be6 {[%clk 0:03:04.3]} 12. O-O {[%clk 0:02:58.9]} 12... Bg7
{[%clk 0:03:03.8]} 13. Qh5 {[%clk 0:02:53.6]} 13... Rc8 {[%clk 0:02:25.9]} 14.
c3 {[%clk 0:02:52.8]} 14... fxe4 {[%clk 0:01:51.6]} 15. Bxe4 {[%clk 0:02:52.5]}
15... Ne7 {[%clk 0:01:52.3]} 16. Ne3 {[%clk 0:02:40.8]} 16... d5 {[%clk
0:01:14.8]} 17. Rad1 {[%clk 0:02:40]} 17... Qd7 {[%clk 0:01:14.9]} 18. Nac2
{[%clk 0:02:38.1]} 18... Qb7 {[%clk 0:01:12.4]} 19. Nxd5 {[%clk 0:02:06]} 19...
Nxd5 {[%clk 0:01:02.6]} 20. Qf3 {[%clk 0:02:05.5]} 20... O-O {[%clk 0:00:28.7]}
21. Bxd5 {[%clk 0:02:03.8]} 21... Qe7 {[%clk 0:00:28.9]} 22. Ne3 {[%clk
0:02:00.1]} 22... Rfd8 {[%clk 0:00:24.3]} 23. a3 {[%clk 0:01:54.6]} 23... Kh8
{[%clk 0:00:16.9]} 24. Bxe6 {[%clk 0:01:46.9]} 24... Qxe6 {[%clk 0:00:17.8]} 25.
Rxd8+ {[%clk 0:01:47.5]} 25... Rxd8 {[%clk 0:00:18]} 26. Rd1 {[%clk 0:01:48.4]}
26... Rxd1+ {[%clk 0:00:17.8]} 27. Qxd1 {[%clk 0:01:49.3]} 27... h6 {[%clk
0:00:11.9]} 28. Qd5 {[%clk 0:01:45]} 28... Qe8 {[%clk 0:00:09.7]} 29. g3 {[%clk
0:01:43]} 29... Kh7 {[%clk 0:00:09.2]} 30. Nf5 {[%clk 0:01:41.2]} 30... Kg6
{[%clk 0:00:06.7]} 31. Qe4 {[%clk 0:01:31]} 31... Kf6 {[%clk 0:00:07.1]} 32. Qf3
{[%clk 0:01:17.1]} 32... Kg6 {[%clk 0:00:01.1]} 33. Qg4+ {[%clk 0:01:14.7]}
33... Kf6 {[%clk 0:00:01.8]} 34. Nxg7 {[%clk 0:01:14.5]} 34... Qd8 {[%clk
0:00:02]} 35. Qh4+ {[%clk 0:01:14]} 35... Kxg7 {[%clk 0:00:02]} 36. Qxd8 {[%clk
0:01:13.9]} 36... e4 {[%clk 0:00:02.9]} 37. Qd4+ {[%clk 0:01:11.4]} 37... f6
{[%clk 0:00:02.5]} 38. Qxe4 {[%clk 0:01:11.6]} 38... b4 {[%clk 0:00:02.8]} 39.
Qxb4 {[%clk 0:01:11]} 39... h5 {[%clk 0:00:03.3]} 40. h4 {[%clk 0:01:10.4]}
40... a5 {[%clk 0:00:03.5]} 41. Qxa5 {[%clk 0:01:10.7]} 41... Kf7 {[%clk
0:00:04.2]} 42. Qxh5+ {[%clk 0:01:10.7]} 42... Kg7 {[%clk 0:00:05.1]} 43. Qf5
{[%clk 0:01:10.5]} 43... Kg8 {[%clk 0:00:05.4]} 44. Qxf6 {[%clk 0:01:10.6]}
44... Kh7 {[%clk 0:00:05]} 45. Qg5 {[%clk 0:01:11.3]} 45... Kh8 {[%clk
0:00:05.2]} 46. c4 {[%clk 0:01:12.2]} 46... Kh7 {[%clk 0:00:06.1]} 47. b3 {[%clk
0:01:13.1]} 47... Kh8 {[%clk 0:00:07]} 48. b4 {[%clk 0:01:14]} 48... Kh7 {[%clk
0:00:07.7]} 49. a4 {[%clk 0:01:14.9]} 49... Kh8 {[%clk 0:00:08.6]} 50. a5 {[%clk
0:01:15.8]} 50... Kh7 {[%clk 0:00:09.5]} 51. b5 {[%clk 0:01:16.7]} 51... Kh8
{[%clk 0:00:10.2]} 52. c5 {[%clk 0:01:17.6]} 52... Kh7 {[%clk 0:00:11.1]} 53. b6
{[%clk 0:01:18.5]} 53... Kh8 {[%clk 0:00:11.5]} 54. a6 {[%clk 0:01:19.4]} 54...
Kh7 {[%clk 0:00:12.4]} 55. c6 {[%clk 0:01:20.3]} 55... Kh8 {[%clk 0:00:13.3]}
56. b7 {[%clk 0:01:21.2]} 56... Kh7 {[%clk 0:00:14.2]} 57. c7 {[%clk 0:01:22.1]}
57... Kh8 {[%clk 0:00:15.1]} 58. a7 {[%clk 0:01:23]} 58... Kh7 {[%clk 0:00:16]}
59. f4 {[%clk 0:01:23.9]} 59... Kh8 {[%clk 0:00:16.9]} 60. g4 {[%clk 0:01:24.8]}
60... Kh7 {[%clk 0:00:17.8]} 61. Kg2 {[%clk 0:01:25.7]} 61... Kh8 {[%clk
0:00:18.7]} 62. c8=N {[%clk 0:01:26.2]} 62... Kh7 {[%clk 0:00:19.6]} 63. b8=N
{[%clk 0:01:26.8]} 63... Kh8 {[%clk 0:00:20.5]} 64. a8=N {[%clk 0:01:27.3]}
64... Kh7 {[%clk 0:00:21.4]} 65. Qh5+ {[%clk 0:01:26.4]} 65... Kg7 {[%clk
0:00:21.8]} 66. Qf5 {[%clk 0:01:26.5]} 66... Kh8 {[%clk 0:00:22.7]} 67. Ncb6
{[%clk 0:01:27.1]} 67... Kg7 {[%clk 0:00:23.6]} 68. Nc6 {[%clk 0:01:27.4]} 68...
Kh8 {[%clk 0:00:24.1]} 69. Nc7 {[%clk 0:01:28.3]} 69... Kg7 {[%clk 0:00:25]} 70.
Nb5 {[%clk 0:01:29.2]} 70... Kh6 {[%clk 0:00:25.9]} 71. Nc4 {[%clk 0:01:30.1]}
71... Kg7 {[%clk 0:00:26.8]} 72. Ncd4 {[%clk 0:01:31]} 72... Kh6 {[%clk
0:00:26.4]} 73. Nc3 {[%clk 0:01:31.9]} 73... Kg7 {[%clk 0:00:27.3]} 74. Nde2
{[%clk 0:01:32.8]} 74... Kh6 {[%clk 0:00:28.2]} 75. Nd1 {[%clk 0:01:33.7]} 75...
Kg7 {[%clk 0:00:29.1]} 76. Nce3 {[%clk 0:01:34.6]} 76... Kh6 {[%clk 0:00:30]}
77. Nf1 {[%clk 0:01:35.5]} 77... Kg7 {[%clk 0:00:30.9]} 78. Nf2 {[%clk
0:01:36.4]} 78... Kh6 {[%clk 0:00:31.8]} 79. Ng1 {[%clk 0:01:37.3]} 79... Kg7
{[%clk 0:00:32.7]} 80. Qh5 {[%clk 0:01:37.6]} 80... Kg8 {[%clk 0:00:32.7]} 81.
Qh6 {[%clk 0:01:37.1]} 81... Kf7 {[%clk 0:00:32.9]} 82. h5 {[%clk 0:01:36.3]}
82... Kg8 {[%clk 0:00:33.8]} 83. g5 {[%clk 0:01:32.3]} 83... Kf7 {[%clk
0:00:34.7]} 84. Qh7+ {[%clk 0:01:32.8]} 84... Ke6 {[%clk 0:00:34.5]} 85. Qg6+
{[%clk 0:01:32.1]} 85... Kd5 {[%clk 0:00:34.4]} 86. Qe4+ {[%clk 0:01:31.6]}
86... Kd6 {[%clk 0:00:34.7]} 87. Qe5+ {[%clk 0:01:31.8]} 87... Kd7 {[%clk
0:00:35.4]} 88. Qf6 {[%clk 0:01:30.9]} 88... Kc7 {[%clk 0:00:35.7]} 89. Qe6
{[%clk 0:01:31.3]} 89... Kd8 {[%clk 0:00:36]} 90. Qf7 {[%clk 0:01:31.6]} 90...
Kc8 {[%clk 0:00:36.4]} 91. Qe7 {[%clk 0:01:32.5]} 91... Kb8 {[%clk 0:00:36.8]}
92. Qd7 {[%clk 0:01:33.4]} 92... Ka8 {[%clk 0:00:37.6]} 93. g6 {[%clk
0:01:34.3]} 93... Kb8 {[%clk 0:00:38.5]} 94. f5 {[%clk 0:01:35.2]} 94... Ka8
{[%clk 0:00:39.4]} 95. f6 {[%clk 0:01:36.1]} 95... Kb8 {[%clk 0:00:40.3]} 96. h6
{[%clk 0:01:37]} 96... Ka8 {[%clk 0:00:41.2]} 97. g7 {[%clk 0:01:37.9]} 97...
Kb8 {[%clk 0:00:42.1]} 98. f7 {[%clk 0:01:38.8]} 98... Ka8 {[%clk 0:00:43]} 99.
h7 {[%clk 0:01:39.7]} 99... Kb8 {[%clk 0:00:43.9]} 100. f8=N {[%clk 0:01:40.1]}
100... Ka8 {[%clk 0:00:44.8]} 101. g8=N {[%clk 0:01:41]} 101... Kb8 {[%clk
0:00:45.7]} 102. h8=N {[%clk 0:01:41.9]} 102... Ka8 {[%clk 0:00:46.6]} 103. Nhg6
{[%clk 0:01:42.6]} 103... Kb8 {[%clk 0:00:47.5]} 104. Nh6 {[%clk 0:01:43.5]}
104... Ka8 {[%clk 0:00:48.4]} 105. Ne6 {[%clk 0:01:44.1]} 105... Kb8 {[%clk
0:00:49.3]} 106. Ng5 {[%clk 0:01:45]} 106... Ka8 {[%clk 0:00:50.2]} 107. Nf5
{[%clk 0:01:45.9]} 107... Kb8 {[%clk 0:00:51.1]} 108. Ngh4 {[%clk 0:01:46.8]}
108... Ka8 {[%clk 0:00:52]} 109. N5g3 {[%clk 0:01:47.7]} 109... Kb8 {[%clk
0:00:52.9]} 110. N5f3 {[%clk 0:01:48.6]} 110... Ka8 {[%clk 0:00:53.8]} 111. Kh2
{[%clk 0:01:42.5]} 111... Kb8 {[%clk 0:00:54.7]} 112. Nhf5 {[%clk 0:01:42.5]}
112... Ka8 {[%clk 0:00:55.6]} 113. N1e3 {[%clk 0:01:42.2]} 113... Kb8 {[%clk
0:00:56.5]} 114. Ng2 {[%clk 0:01:43.1]} 114... Ka8 {[%clk 0:00:57.4]} 115. Nfh3
{[%clk 0:01:43.9]} 115... Kb8 {[%clk 0:00:58.3]} 116. Nd2 {[%clk 0:01:44.3]}
116... Ka8 {[%clk 0:00:59.2]} 117. Nde4 {[%clk 0:01:45.2]} 117... Kb8 {[%clk
0:01:00.1]} 118. Nef2 {[%clk 0:01:46.1]} 118... Ka8 {[%clk 0:01:01]} 119. Nfh1
{[%clk 0:01:47]} 119... Kb8 {[%clk 0:01:01.9]} 120. Nfh4 {[%clk 0:01:40.9]}
120... Ka8 {[%clk 0:01:02.8]} 121. Qa4+ {[%clk 0:01:40.3]} 121... Kb8 {[%clk
0:01:03.7]} 122. Qa6 {[%clk 0:01:40]} 122... Kc7 {[%clk 0:01:04]} 123. Qa8
{[%clk 0:01:40.4]} 123... Kb6 {[%clk 0:01:04]} 124. Qd5 {[%clk 0:01:36.3]}
124... Kc7 {[%clk 0:01:04.1]} 125. Qe6 {[%clk 0:01:36.3]} 125... Kb7 {[%clk
0:01:04.5]} 126. Qd6 {[%clk 0:01:36.3]} 126... Kc8 {[%clk 0:01:04.9]} 127. Qe7
{[%clk 0:01:36.5]} 127... Kb8 {[%clk 0:01:05.5]} 128. Qd7 {[%clk 0:01:37.4]}
128... Ka8 {[%clk 0:01:06.2]} 129. Nhf5 {[%clk 0:01:38.3]} 129... Kb8 {[%clk
0:01:07.1]} 130. Nd6 {[%clk 0:01:39.2]} 130... Ka8 {[%clk 0:01:08]} 131. Qb7#
{[%clk 0:01:39.2]} 1-0